[Event "Live Chess"]
[Site "Chess.com"]
[Date "2024.06.02"]
[Round "-"]
[White "MaksymYurii"]
[Black "Dhaydon19"]
[Result "0-1"]
[WhiteElo "952"]
[BlackElo "2678"]
[TimeControl "300"]
[EndTime "16:28:13 PDT"]
[Termination "Dhaydon19 won by checkmate"]

1. e4 {[%clk 0:04:58.6]} 1... e6 {[%clk 0:04:59.5]} 2. Nf3 {[%clk 0:04:57.1]}
2... d5 {[%clk 0:04:59.1]} 3. e5 {[%clk 0:04:53.8]} 3... c5 {[%clk 0:04:57.8]}
4. d4 {[%clk 0:04:51.6]} 4... cxd4 {[%clk 0:04:56.8]} 5. Qxd4 {[%clk 0:04:47.5]}
5... Nc6 {[%clk 0:04:56.1]} 6. Qa4 {[%clk 0:04:44.1]} 6... Bd7 {[%clk
0:04:54.9]} 7. Bb5 {[%clk 0:04:40.3]} 7... Nge7 {[%clk 0:04:52.7]} 8. Nd4 {[%clk
0:04:38.8]} 8... Nxe5 {[%clk 0:04:47.7]} 9. Bxd7+ {[%clk 0:04:26.8]} 9... Qxd7
{[%clk 0:04:45.3]} 10. Qb3 {[%clk 0:04:23.5]} 10... N7c6 {[%clk 0:04:43.2]} 11.
Nxc6 {[%clk 0:04:18.7]} 11... Nxc6 {[%clk 0:04:41.1]} 12. Nc3 {[%clk 0:04:16.6]}
12... Be7 {[%clk 0:04:39.1]} 13. O-O {[%clk 0:04:11.9]} 13... Nd4 {[%clk
0:04:37]} 14. Qa4 {[%clk 0:04:02.2]} 14... Qxa4 {[%clk 0:04:35.8]} 15. Nxa4
{[%clk 0:04:01.3]} 15... Nxc2 {[%clk 0:04:35.5]} 16. Bf4 {[%clk 0:03:48.7]}
16... Nxa1 {[%clk 0:04:32.9]} 17. Rxa1 {[%clk 0:03:45.8]} 17... Kd7 {[%clk
0:04:31.8]} 18. Rc1 {[%clk 0:03:42.7]} 18... Rhc8 {[%clk 0:04:30.1]} 19. Re1
{[%clk 0:03:33.3]} 19... Rc4 {[%clk 0:04:27]} 20. Nc3 {[%clk 0:03:11.9]} 20...
Rxf4 {[%clk 0:04:17.8]} 21. Rc1 {[%clk 0:03:10.3]} 21... Rc4 {[%clk 0:04:16.6]}
22. b3 {[%clk 0:03:06.4]} 22... Rc6 {[%clk 0:04:14.8]} 23. a4 {[%clk 0:03:03.6]}
23... Rac8 {[%clk 0:04:12.6]} 24. h3 {[%clk 0:02:58.1]} 24... Rxc3 {[%clk
0:04:10.3]} 25. Rxc3 {[%clk 0:02:57.3]} 25... Rxc3 {[%clk 0:04:08.6]} 26. b4
{[%clk 0:02:55.9]} 26... Bxb4 {[%clk 0:04:06.2]} 27. a5 {[%clk 0:02:55]} 27...
Rc2 {[%clk 0:04:05.6]} 28. Kh2 {[%clk 0:02:53.6]} 28... Bd6+ {[%clk 0:04:03.9]}
29. g3 {[%clk 0:02:52.3]} 29... Rxf2+ {[%clk 0:04:03.2]} 30. Kg1 {[%clk
0:02:50.8]} 30... Bxg3 {[%clk 0:04:02.9]} 31. a6 {[%clk 0:02:48.5]} 31... b6
{[%clk 0:04:01.1]} 32. h4 {[%clk 0:02:46.4]} 32... d4 {[%clk 0:04:00.9]} 33. h5
{[%clk 0:02:44.1]} 33... d3 {[%clk 0:04:00.2]} 34. h6 {[%clk 0:02:43.3]} 34...
d2 {[%clk 0:03:59.8]} 35. hxg7 {[%clk 0:02:39.6]} 35... d1=Q# {[%clk 0:03:59.2]}
0-1

[Event "Live Chess"]
[Site "Chess.com"]
[Date "2024.06.02"]
[Round "-"]
[White "StoreySniper"]
[Black "DoctorMantisTobogganMD"]
[Result "1-0"]
[WhiteElo "2531"]
[BlackElo "2178"]
[TimeControl "300"]
[EndTime "16:28:22 PDT"]
[Termination "StoreySniper won by checkmate"]

1. e4 {[%clk 0:04:57]} 1... c6 {[%clk 0:04:58.2]} 2. d4 {[%clk 0:04:54.9]} 2...
g6 {[%clk 0:04:57.3]} 3. c4 {[%clk 0:04:53.3]} 3... d5 {[%clk 0:04:56]} 4. Nc3
{[%clk 0:04:51.2]} 4... dxe4 {[%clk 0:04:53.8]} 5. Nxe4 {[%clk 0:04:46]} 5...
Bg7 {[%clk 0:04:52.8]} 6. Be3 {[%clk 0:04:43.7]} 6... Nd7 {[%clk 0:04:50.7]} 7.
Nf3 {[%clk 0:04:41.8]} 7... Ngf6 {[%clk 0:04:49.4]} 8. Nc3 {[%clk 0:04:38.7]}
8... O-O {[%clk 0:04:47.8]} 9. Be2 {[%clk 0:04:34.6]} 9... Qc7 {[%clk
0:04:45.1]} 10. O-O {[%clk 0:04:33.3]} 10... e5 {[%clk 0:04:43.9]} 11. d5 {[%clk
0:04:28.5]} 11... cxd5 {[%clk 0:04:37.3]} 12. cxd5 {[%clk 0:04:23.7]} 12... a6
{[%clk 0:04:36.1]} 13. Rc1 {[%clk 0:04:20.1]} 13... Qd6 {[%clk 0:04:29.6]} 14.
Ng5 {[%clk 0:04:07.6]} 14... b5 {[%clk 0:04:03.9]} 15. Nge4 {[%clk 0:04:05.8]}
15... Nxe4 {[%clk 0:04:02.9]} 16. Nxe4 {[%clk 0:04:04.9]} 16... Qb4 {[%clk
0:04:02.1]} 17. Bf3 {[%clk 0:03:50.6]} 17... f5 {[%clk 0:03:51.3]} 18. Nc5
{[%clk 0:03:48.1]} 18... e4 {[%clk 0:03:23.5]} 19. Be2 {[%clk 0:03:37.2]} 19...
Ne5 {[%clk 0:02:44.3]} 20. b3 {[%clk 0:03:23.9]} 20... f4 {[%clk 0:02:30.3]} 21.
Bd2 {[%clk 0:03:17.4]} 21... Qd4 {[%clk 0:02:25.9]} 22. Qc2 {[%clk 0:03:00.6]}
22... f3 {[%clk 0:02:07.7]} 23. Be3 {[%clk 0:02:30.9]} 23... Qxd5 {[%clk
0:01:31.2]} 24. Rfd1 {[%clk 0:02:30]} 24... Qf7 {[%clk 0:01:23.8]} 25. gxf3
{[%clk 0:02:26.3]} 25... exf3 {[%clk 0:01:10.8]} 26. Bf1 {[%clk 0:02:24.9]}
26... Bf5 {[%clk 0:00:59]} 27. Qd2 {[%clk 0:02:17.9]} 27... Ng4 {[%clk
0:00:53.4]} 28. a4 {[%clk 0:02:05.8]} 28... Nxe3 {[%clk 0:00:50.7]} 29. Qxe3
{[%clk 0:02:04.6]} 29... Rae8 {[%clk 0:00:49.2]} 30. Qf4 {[%clk 0:01:59.7]}
30... Kh8 {[%clk 0:00:35.1]} 31. axb5 {[%clk 0:01:56.9]} 31... axb5 {[%clk
0:00:35]} 32. Bxb5 {[%clk 0:01:55.2]} 32... Rc8 {[%clk 0:00:23.1]} 33. b4 {[%clk
0:01:45.7]} 33... Qf6 {[%clk 0:00:22]} 34. Qxf3 {[%clk 0:01:23.2]} 34... Qb2
{[%clk 0:00:19.9]} 35. Qb3 {[%clk 0:01:11.7]} 35... Qe5 {[%clk 0:00:15.1]} 36.
Qg3 {[%clk 0:01:07.2]} 36... Qf6 {[%clk 0:00:13.7]} 37. Bd3 {[%clk 0:01:01.3]}
37... Bxd3 {[%clk 0:00:11.6]} 38. Nxd3 {[%clk 0:00:58.9]} 38... Rxc1 {[%clk
0:00:10.9]} 39. Rxc1 {[%clk 0:00:58.3]} 39... Bh6 {[%clk 0:00:10.2]} 40. Rc7
{[%clk 0:00:44.6]} 40... Bg7 {[%clk 0:00:09.4]} 41. Kg2 {[%clk 0:00:40.4]} 41...
Qa1 {[%clk 0:00:08.8]} 42. b5 {[%clk 0:00:27.5]} 42... Qa8+ {[%clk 0:00:08.1]}
43. f3 {[%clk 0:00:23.3]} 43... Qb8 {[%clk 0:00:08]} 44. Rc5 {[%clk 0:00:18.4]}
44... Qd8 {[%clk 0:00:07.9]} 45. f4 {[%clk 0:00:16.6]} 45... Qb6 {[%clk
0:00:07.4]} 46. Qe3 {[%clk 0:00:15.3]} 46... Qb7+ {[%clk 0:00:06.9]} 47. Qf3
{[%clk 0:00:13.9]} 47... Qf7 {[%clk 0:00:06.8]} 48. Qd5 {[%clk 0:00:12.3]} 48...
Qe8 {[%clk 0:00:05]} 49. b6 {[%clk 0:00:11]} 49... Qa8 {[%clk 0:00:04.3]} 50. b7
{[%clk 0:00:10.2]} 50... Qb8 {[%clk 0:00:04.2]} 51. Qd7 {[%clk 0:00:08.8]} 51...
Bf6 {[%clk 0:00:04.1]} 52. Rc8 {[%clk 0:00:08]} 52... Bg7 {[%clk 0:00:04]} 53.
Rxb8 {[%clk 0:00:06.8]} 53... Rxb8 {[%clk 0:00:03.9]} 54. Qc8+ {[%clk
0:00:06.5]} 54... Rxc8 {[%clk 0:00:02.8]} 55. bxc8=Q+ {[%clk 0:00:06.4]} 55...
Bf8 {[%clk 0:00:02.5]} 56. Qxf8# {[%clk 0:00:06]} 1-0

[Event "Live Chess"]
[Site "Chess.com"]
[Date "2024.06.02"]
[Round "-"]
[White "KeithArkell"]
[Black "NeilDruggan73"]
[Result "1-0"]
[WhiteElo "2405"]
[BlackElo "1747"]
[TimeControl "300"]
[EndTime "16:29:16 PDT"]
[Termination "KeithArkell won by resignation"]

1. d4 {[%clk 0:04:57.2]} 1... Nf6 {[%clk 0:04:57.3]} 2. Nf3 {[%clk 0:04:56.6]}
2... d6 {[%clk 0:04:36.1]} 3. g3 {[%clk 0:04:54.8]} 3... g6 {[%clk 0:04:34.7]}
4. Bg2 {[%clk 0:04:47]} 4... Bg7 {[%clk 0:04:31.8]} 5. c4 {[%clk 0:04:46.2]}
5... O-O {[%clk 0:04:29]} 6. Nc3 {[%clk 0:04:45.5]} 6... c6 {[%clk 0:04:13.7]}
7. O-O {[%clk 0:04:44.1]} 7... Qc7 {[%clk 0:04:12]} 8. Bf4 {[%clk 0:04:43]} 8...
Nh5 {[%clk 0:04:06.8]} 9. Be3 {[%clk 0:04:40.8]} 9... Nd7 {[%clk 0:03:59.5]} 10.
Qd2 {[%clk 0:04:40]} 10... b6 {[%clk 0:03:47.5]} 11. Bh6 {[%clk 0:04:38.8]}
11... Bb7 {[%clk 0:03:37.7]} 12. Rac1 {[%clk 0:04:36.8]} 12... Ndf6 {[%clk
0:03:31.2]} 13. h3 {[%clk 0:04:33]} 13... d5 {[%clk 0:03:26.9]} 14. cxd5 {[%clk
0:04:30.2]} 14... Qd7 {[%clk 0:02:46.6]} 15. Bxg7 {[%clk 0:04:27.1]} 15... Kxg7
{[%clk 0:02:37.8]} 16. Ne5 {[%clk 0:04:27]} 16... Qd6 {[%clk 0:02:30.1]} 17.
dxc6 {[%clk 0:04:13.4]} 17... Bc8 {[%clk 0:02:22.9]} 18. Nb5 {[%clk 0:04:09.3]}
18... Qe6 {[%clk 0:01:57.2]} 19. Nc7 {[%clk 0:04:06.9]} 19... Qxa2 {[%clk
0:01:55.4]} 20. Nxa8 {[%clk 0:04:04.4]} 20... Bxh3 {[%clk 0:01:53.9]} 21. Bxh3
{[%clk 0:04:02.1]} 21... Ne4 {[%clk 0:01:53.2]} 22. Qe3 {[%clk 0:03:59.2]} 22...
f5 {[%clk 0:01:48.2]} 23. Nc7 {[%clk 0:03:56.1]} 23... Qxb2 {[%clk 0:01:43.5]}
24. Ne6+ {[%clk 0:03:53.5]} 24... Kg8 {[%clk 0:01:39.7]} 25. Nxf8 {[%clk
0:03:52.3]} 25... Kxf8 {[%clk 0:01:39.4]} 26. c7 {[%clk 0:03:51.8]} 1-0

[Event "Live Chess"]
[Site "Chess.com"]
[Date "2024.06.02"]
[Round "-"]
[White "Queensandpawns"]
[Black "ShanthamGrarks"]
[Result "1-0"]
[WhiteElo "2319"]
[BlackElo "1829"]
[TimeControl "300"]
[EndTime "16:29:35 PDT"]
[Termination "Queensandpawns won by resignation"]

1. e4 {[%clk 0:04:57.6]} 1... e6 {[%clk 0:04:56]} 2. d4 {[%clk 0:04:51.9]} 2...
d5 {[%clk 0:04:55.3]} 3. exd5 {[%clk 0:04:51.8]} 3... exd5 {[%clk 0:04:53.6]} 4.
Bd3 {[%clk 0:04:51.7]} 4... c6 {[%clk 0:04:52.7]} 5. Nf3 {[%clk 0:04:50.5]} 5...
Nf6 {[%clk 0:04:52.2]} 6. O-O {[%clk 0:04:50.4]} 6... Be7 {[%clk 0:04:51.2]} 7.
c4 {[%clk 0:04:48.8]} 7... O-O {[%clk 0:04:50.6]} 8. cxd5 {[%clk 0:04:47.7]}
8... cxd5 {[%clk 0:04:48.6]} 9. Nc3 {[%clk 0:04:47.6]} 9... Nc6 {[%clk
0:04:47.4]} 10. Bf4 {[%clk 0:04:46.8]} 10... Bg4 {[%clk 0:04:46.2]} 11. h3
{[%clk 0:04:42.8]} 11... Bxf3 {[%clk 0:04:43.7]} 12. Qxf3 {[%clk 0:04:42.7]}
12... Nxd4 {[%clk 0:04:42.8]} 13. Qd1 {[%clk 0:04:37.9]} 13... Ne6 {[%clk
0:04:38.8]} 14. Bg3 {[%clk 0:04:36.3]} 14... Bd6 {[%clk 0:04:36.4]} 15. f4
{[%clk 0:04:30.7]} 15... Nc5 {[%clk 0:04:32.3]} 16. Bc2 {[%clk 0:04:28.9]} 16...
Nce4 {[%clk 0:04:25.9]} 17. Bh4 {[%clk 0:03:59.6]} 17... Nxc3 {[%clk 0:03:57.5]}
18. bxc3 {[%clk 0:03:59.5]} 18... Qb6+ {[%clk 0:03:45.8]} 19. Kh1 {[%clk
0:03:56.7]} 19... Ne4 {[%clk 0:03:41.5]} 20. Qxd5 {[%clk 0:03:54.1]} 20... Nxc3
{[%clk 0:03:34]} 21. Qd3 {[%clk 0:03:49.9]} 21... g6 {[%clk 0:03:05.9]} 22. Qxc3
{[%clk 0:03:48]} 22... Rac8 {[%clk 0:03:02.5]} 23. Qd3 {[%clk 0:03:42.3]} 23...
Rfe8 {[%clk 0:02:51.4]} 24. f5 {[%clk 0:03:39.5]} 24... Qc5 {[%clk 0:02:42.6]}
25. fxg6 {[%clk 0:03:36.1]} 25... hxg6 {[%clk 0:02:30.2]} 26. Bb3 {[%clk
0:03:32.9]} 26... Qe5 {[%clk 0:02:23.6]} 27. Qxg6+ {[%clk 0:03:30.2]} 1-0

[Event "Live Chess"]
[Site "Chess.com"]
[Date "2024.06.02"]
[Round "-"]
[White "wadsy27"]
[Black "bear856"]
[Result "1-0"]
[WhiteElo "2574"]
[BlackElo "2372"]
[TimeControl "300"]
[EndTime "16:29:39 PDT"]
[Termination "wadsy27 won by resignation"]

1. c4 {[%clk 0:04:57.8]} 1... c6 {[%clk 0:04:58.8]} 2. g3 {[%clk 0:04:56.4]}
2... d5 {[%clk 0:04:58.2]} 3. Nf3 {[%clk 0:04:56]} 3... Bg4 {[%clk 0:04:55.6]}
4. Ne5 {[%clk 0:04:54.8]} 4... Bf5 {[%clk 0:04:53.9]} 5. Qb3 {[%clk 0:04:54.4]}
5... Qb6 {[%clk 0:04:51.9]} 6. cxd5 {[%clk 0:04:53]} 6... Qxb3 {[%clk
0:04:50.2]} 7. axb3 {[%clk 0:04:52.3]} 7... cxd5 {[%clk 0:04:49.1]} 8. Nc3
{[%clk 0:04:49.7]} 8... e6 {[%clk 0:04:47.7]} 9. g4 {[%clk 0:04:24]} 9... Bc2
{[%clk 0:04:44]} 10. Nb5 {[%clk 0:04:19.7]} 10... Na6 {[%clk 0:04:30.6]} 11. Nd4
{[%clk 0:04:03.3]} 11... f6 {[%clk 0:04:21.8]} 12. Nxc2 {[%clk 0:03:25.4]} 12...
fxe5 {[%clk 0:04:18.7]} 13. d4 {[%clk 0:03:15.4]} 13... Nb4 {[%clk 0:04:13.1]}
14. Nxb4 {[%clk 0:03:14]} 14... Bxb4+ {[%clk 0:04:11.1]} 15. Bd2 {[%clk
0:03:13.6]} 15... Bxd2+ {[%clk 0:04:09.9]} 16. Kxd2 {[%clk 0:03:13.5]} 16...
exd4 {[%clk 0:04:08.6]} 17. Kd3 {[%clk 0:03:09.6]} 17... e5 {[%clk 0:04:03.5]}
18. f4 {[%clk 0:03:08.2]} 18... exf4 {[%clk 0:03:58.2]} 19. Bg2 {[%clk
0:03:05.2]} 19... Nf6 {[%clk 0:03:56.6]} 20. g5 {[%clk 0:03:04.2]} 20... Ne4
{[%clk 0:03:53.1]} 21. Bxe4 {[%clk 0:03:03.4]} 21... dxe4+ {[%clk 0:03:52.1]}
22. Kxd4 {[%clk 0:02:58.8]} 22... O-O {[%clk 0:03:50.8]} 23. Kxe4 {[%clk
0:02:58.2]} 23... Rae8+ {[%clk 0:03:49.4]} 24. Kf3 {[%clk 0:02:57.5]} 24... Re3+
{[%clk 0:03:48.4]} 25. Kf2 {[%clk 0:02:56.1]} 25... Rfe8 {[%clk 0:03:47.1]} 26.
Rhe1 {[%clk 0:02:55.2]} 26... Rxb3 {[%clk 0:03:45.3]} 27. Rxa7 {[%clk
0:02:52.2]} 27... Rxb2 {[%clk 0:03:44.1]} 28. Ra4 {[%clk 0:02:51.4]} 28... Re5
{[%clk 0:03:34.1]} 29. h4 {[%clk 0:02:48.9]} 29... Rf5 {[%clk 0:03:29.7]} 30.
Kf3 {[%clk 0:02:18.4]} 30... Rb3+ {[%clk 0:03:22.2]} 31. Kg4 {[%clk 0:02:17.5]}
31... g6 {[%clk 0:03:21.1]} 32. Rxf4 {[%clk 0:02:16.3]} 32... Rxf4+ {[%clk
0:03:16.4]} 33. Kxf4 {[%clk 0:02:15.3]} 33... Kf7 {[%clk 0:03:14.2]} 34. e4
{[%clk 0:02:11.9]} 34... Ke6 {[%clk 0:03:11.1]} 35. Rc1 {[%clk 0:02:04]} 35...
Rb2 {[%clk 0:03:06]} 36. Rc7 {[%clk 0:02:01.4]} 36... Rf2+ {[%clk 0:03:02.6]}
37. Ke3 {[%clk 0:01:59.7]} 37... Rf7 {[%clk 0:03:00.4]} 38. Rc5 {[%clk
0:01:56.4]} 38... Rd7 {[%clk 0:02:57.8]} 39. Rb5 {[%clk 0:01:55]} 39... Rc7
{[%clk 0:02:56.3]} 40. Kf4 {[%clk 0:01:44.6]} 40... Rf7+ {[%clk 0:02:51.4]} 41.
Kg4 {[%clk 0:01:43.6]} 41... Rc7 {[%clk 0:02:50.3]} 42. h5 {[%clk 0:01:38.2]}
42... gxh5+ {[%clk 0:02:48.5]} 43. Kxh5 {[%clk 0:01:37.4]} 43... Rd7 {[%clk
0:02:46.8]} 44. Kh6 {[%clk 0:01:35.5]} 44... Re7 {[%clk 0:02:45.2]} 45. Rf5
{[%clk 0:01:20.3]} 45... Kd6 {[%clk 0:02:42.3]} 46. Rf8 {[%clk 0:01:18.4]} 46...
Ke5 {[%clk 0:02:39.2]} 47. Rh8 {[%clk 0:01:13.4]} 47... Kf4 {[%clk 0:02:36.2]}
48. e5 {[%clk 0:00:32.2]} 48... Kf5 {[%clk 0:02:25.5]} 49. Rg8 {[%clk
0:00:15.3]} 49... Kxe5 {[%clk 0:02:21.7]} 50. Rg7 {[%clk 0:00:14.5]} 50... Re6+
{[%clk 0:02:12.1]} 51. Kxh7 {[%clk 0:00:13.3]} 51... b5 {[%clk 0:02:10.4]} 52.
g6 {[%clk 0:00:12.8]} 52... Kf5 {[%clk 0:02:07.9]} 53. Rf7+ {[%clk 0:00:11.9]}
53... Kg5 {[%clk 0:02:06.9]} 54. Rb7 {[%clk 0:00:11]} 1-0

[Event "Live Chess"]
[Site "Chess.com"]
[Date "2024.06.02"]
[Round "-"]
[White "cymbalshift"]
[Black "stevochess11"]
[Result "1-0"]
[WhiteElo "1734"]
[BlackElo "1701"]
[TimeControl "300"]
[EndTime "16:30:28 PDT"]
[Termination "cymbalshift won by checkmate"]

1. d4 {[%clk 0:04:58]} 1... Nf6 {[%clk 0:04:57.8]} 2. Nc3 {[%clk 0:04:53.3]}
2... d5 {[%clk 0:04:52.7]} 3. e4 {[%clk 0:04:52]} 3... dxe4 {[%clk 0:04:48.2]}
4. f3 {[%clk 0:04:50.7]} 4... c5 {[%clk 0:04:41.5]} 5. d5 {[%clk 0:04:47.4]}
5... e6 {[%clk 0:04:30]} 6. fxe4 {[%clk 0:04:45.1]} 6... exd5 {[%clk 0:04:28.3]}
7. exd5 {[%clk 0:04:42.5]} 7... Bg4 {[%clk 0:04:24.9]} 8. Nf3 {[%clk 0:04:40.6]}
8... Nbd7 {[%clk 0:04:15.2]} 9. Bg5 {[%clk 0:04:28]} 9... Bd6 {[%clk 0:04:08.8]}
10. h3 {[%clk 0:04:15.8]} 10... Bh5 {[%clk 0:04:04.3]} 11. Bb5 {[%clk
0:04:01.8]} 11... O-O {[%clk 0:03:57.6]} 12. Bxd7 {[%clk 0:03:58.8]} 12... Qxd7
{[%clk 0:03:53.5]} 13. Bxf6 {[%clk 0:03:57.1]} 13... gxf6 {[%clk 0:03:49.2]} 14.
O-O {[%clk 0:03:49.2]} 14... Be5 {[%clk 0:03:31.6]} 15. Qd2 {[%clk 0:03:45.2]}
15... Bxf3 {[%clk 0:03:25]} 16. Rxf3 {[%clk 0:03:41.7]} 16... Bd4+ {[%clk
0:03:16.8]} 17. Kh1 {[%clk 0:03:37.5]} 17... Kh8 {[%clk 0:03:14.5]} 18. Raf1
{[%clk 0:03:03.1]} 18... Qd6 {[%clk 0:02:51.2]} 19. Ne4 {[%clk 0:02:54.7]} 19...
Qxd5 {[%clk 0:02:36.5]} 20. Nxf6 {[%clk 0:02:52.9]} 20... Qe6 {[%clk 0:02:27.6]}
21. c3 {[%clk 0:02:44.6]} 21... Be5 {[%clk 0:02:23.6]} 22. Qh6 {[%clk
0:02:30.8]} 22... Bxf6 {[%clk 0:02:21.3]} 23. Rxf6 {[%clk 0:02:30.6]} 23... Qe4
{[%clk 0:02:11.8]} 24. R6f4 {[%clk 0:02:18.5]} 24... Qd5 {[%clk 0:01:42.8]} 25.
Qf6+ {[%clk 0:02:15.9]} 25... Kg8 {[%clk 0:01:41.3]} 26. Rg4+ {[%clk 0:02:15.3]}
26... Qg5 {[%clk 0:01:39.4]} 27. Rxg5# {[%clk 0:02:14.1]} 1-0

[Event "Live Chess"]
[Site "Chess.com"]
[Date "2024.06.02"]
[Round "-"]
[White "ACM42"]
[Black "gmnorfolk"]
[Result "0-1"]
[WhiteElo "2166"]
[BlackElo "2148"]
[TimeControl "300"]
[EndTime "16:30:38 PDT"]
[Termination "gmnorfolk won on time"]

1. e4 {[%clk 0:04:58.2]} 1... c5 {[%clk 0:04:57.3]} 2. Nf3 {[%clk 0:04:56.7]}
2... d6 {[%clk 0:04:56]} 3. d4 {[%clk 0:04:56.6]} 3... cxd4 {[%clk 0:04:55.2]}
4. Nxd4 {[%clk 0:04:56.2]} 4... Nf6 {[%clk 0:04:54.7]} 5. Nc3 {[%clk 0:04:55.6]}
5... a6 {[%clk 0:04:54.1]} 6. Be2 {[%clk 0:04:53.4]} 6... e5 {[%clk 0:04:52.2]}
7. Nb3 {[%clk 0:04:52.7]} 7... Be7 {[%clk 0:04:47.4]} 8. O-O {[%clk 0:04:51.7]}
8... O-O {[%clk 0:04:46.1]} 9. f4 {[%clk 0:04:50.8]} 9... b5 {[%clk 0:04:43.8]}
10. a3 {[%clk 0:04:47.4]} 10... Bb7 {[%clk 0:04:41.8]} 11. Bf3 {[%clk
0:04:45.8]} 11... Nbd7 {[%clk 0:04:40.1]} 12. Qe1 {[%clk 0:04:41.4]} 12... Rc8
{[%clk 0:04:38]} 13. Be3 {[%clk 0:04:37.6]} 13... Nb6 {[%clk 0:04:31.4]} 14. Rd1
{[%clk 0:04:35.5]} 14... Nc4 {[%clk 0:04:29.4]} 15. Bc1 {[%clk 0:04:32.5]} 15...
Qc7 {[%clk 0:04:28]} 16. Nd5 {[%clk 0:04:25.1]} 16... Nxd5 {[%clk 0:04:18.8]}
17. exd5 {[%clk 0:04:23.4]} 17... exf4 {[%clk 0:04:18.3]} 18. Kh1 {[%clk
0:04:17]} 18... Bf6 {[%clk 0:04:15.7]} 19. c3 {[%clk 0:04:15.1]} 19... Be5
{[%clk 0:04:11.1]} 20. Qh4 {[%clk 0:03:49.9]} 20... f6 {[%clk 0:04:04.3]} 21.
Be4 {[%clk 0:03:45.3]} 21... g5 {[%clk 0:04:02.8]} 22. Qh3 {[%clk 0:03:41.7]}
22... Qg7 {[%clk 0:03:52.8]} 23. Nd4 {[%clk 0:03:36.3]} 23... Bxd4 {[%clk
0:03:46.8]} 24. cxd4 {[%clk 0:03:31.4]} 24... f5 {[%clk 0:03:35.6]} 25. Bxf5
{[%clk 0:03:26.8]} 25... Rcd8 {[%clk 0:03:26.2]} 26. Be6+ {[%clk 0:03:17.5]}
26... Kh8 {[%clk 0:03:24.9]} 27. b3 {[%clk 0:03:16.5]} 27... Nb6 {[%clk
0:03:21.3]} 28. Qf3 {[%clk 0:02:58.6]} 28... g4 {[%clk 0:03:18.2]} 29. Qxg4
{[%clk 0:02:53.9]} 29... Qxg4 {[%clk 0:03:11.5]} 30. Bxg4 {[%clk 0:02:52.9]}
30... Bxd5 {[%clk 0:03:07.9]} 31. b4 {[%clk 0:02:52]} 31... Nc4 {[%clk
0:03:03.4]} 32. Bxf4 {[%clk 0:02:31.2]} 32... Nxa3 {[%clk 0:02:56.7]} 33. Ra1
{[%clk 0:02:24.5]} 33... Nc4 {[%clk 0:02:48.9]} 34. Rxa6 {[%clk 0:02:19.8]}
34... Ne3 {[%clk 0:02:47.5]} 35. Rxd6 {[%clk 0:01:51]} 35... Nxg4 {[%clk
0:02:41.9]} 36. h3 {[%clk 0:01:32]} 36... Rxd6 {[%clk 0:02:20.6]} 37. hxg4
{[%clk 0:01:30.6]} 37... Re6 {[%clk 0:02:13.5]} 38. Be5+ {[%clk 0:01:26.9]}
38... Kg8 {[%clk 0:02:12.5]} 39. Ra1 {[%clk 0:01:24.5]} 39... Rxe5 {[%clk
0:02:04.1]} 40. dxe5 {[%clk 0:01:22.9]} 40... Re8 {[%clk 0:02:02.7]} 41. Re1
{[%clk 0:01:13.3]} 41... Kf7 {[%clk 0:01:57.9]} 42. Kh2 {[%clk 0:01:12.3]} 42...
Ke6 {[%clk 0:01:56.1]} 43. Kg3 {[%clk 0:01:11.7]} 43... Rc8 {[%clk 0:01:53.4]}
44. Rh1 {[%clk 0:01:08.2]} 44... Rc7 {[%clk 0:01:44.2]} 45. Kf4 {[%clk
0:01:02.1]} 45... Bxg2 {[%clk 0:01:40.2]} 46. Rh6+ {[%clk 0:01:00.6]} 46... Kd5
{[%clk 0:01:34]} 47. Rd6+ {[%clk 0:00:58.5]} 47... Kc4 {[%clk 0:01:32.7]} 48. e6
{[%clk 0:00:57.6]} 48... Bc6 {[%clk 0:01:27.9]} 49. Ke5 {[%clk 0:00:48.6]} 49...
Be8 {[%clk 0:01:24.4]} 50. Kf6 {[%clk 0:00:33.3]} 50... Kxb4 {[%clk 0:01:15.1]}
51. Rd8 {[%clk 0:00:31.9]} 51... Bg6 {[%clk 0:01:10.1]} 52. e7 {[%clk
0:00:29.5]} 52... Rc6+ {[%clk 0:01:07.1]} 53. Ke5 {[%clk 0:00:26.1]} 53... Rc1
{[%clk 0:01:05.8]} 54. Kf6 {[%clk 0:00:14.8]} 54... Re1 {[%clk 0:01:03.8]} 55.
g5 {[%clk 0:00:11.7]} 55... Kb3 {[%clk 0:00:59]} 56. Rd7 {[%clk 0:00:10.3]}
56... b4 {[%clk 0:00:56.5]} 57. Kg7 {[%clk 0:00:09]} 57... Kb2 {[%clk
0:00:52.9]} 58. Kh6 {[%clk 0:00:07.1]} 58... b3 {[%clk 0:00:50.6]} 59. Rd4
{[%clk 0:00:02]} 59... Kc3 {[%clk 0:00:47.3]} 0-1

[Event "Live Chess"]
[Site "Chess.com"]
[Date "2024.06.02"]
[Round "-"]
[White "jimwad"]
[Black "GwaryTek"]
[Result "0-1"]
[WhiteElo "1332"]
[BlackElo "1916"]
[TimeControl "300"]
[EndTime "16:30:44 PDT"]
[Termination "GwaryTek won by checkmate"]

1. c4 {[%clk 0:04:57.6]} 1... Nf6 {[%clk 0:04:59.9]} 2. g3 {[%clk 0:04:56]} 2...
c6 {[%clk 0:04:59.7]} 3. Bg2 {[%clk 0:04:55.3]} 3... d5 {[%clk 0:04:59.2]} 4.
cxd5 {[%clk 0:04:53.8]} 4... cxd5 {[%clk 0:04:57.3]} 5. d4 {[%clk 0:04:53]} 5...
Nc6 {[%clk 0:04:56.2]} 6. e3 {[%clk 0:04:51.3]} 6... Bg4 {[%clk 0:04:55.3]} 7.
f3 {[%clk 0:04:49.1]} 7... Bf5 {[%clk 0:04:53.6]} 8. Nc3 {[%clk 0:04:47.2]} 8...
e6 {[%clk 0:04:50.5]} 9. Nge2 {[%clk 0:04:46]} 9... h5 {[%clk 0:04:49.1]} 10.
O-O {[%clk 0:04:43.6]} 10... Bd6 {[%clk 0:04:46.4]} 11. f4 {[%clk 0:04:32.3]}
11... h4 {[%clk 0:04:37.8]} 12. Nb5 {[%clk 0:04:25.6]} 12... hxg3 {[%clk
0:04:25.6]} 13. Nxg3 {[%clk 0:04:23.6]} 13... Bb8 {[%clk 0:03:58.7]} 14. Nxf5
{[%clk 0:04:20.7]} 14... exf5 {[%clk 0:03:58.6]} 15. Qc2 {[%clk 0:04:09.7]}
15... Ne4 {[%clk 0:03:53.7]} 16. Bxe4 {[%clk 0:04:07.4]} 16... fxe4 {[%clk
0:03:48.5]} 17. Qg2 {[%clk 0:04:05.4]} 17... Qh4 {[%clk 0:03:31.6]} 18. Rf2
{[%clk 0:03:58.1]} 18... Rh6 {[%clk 0:03:25.8]} 19. Qxg7 {[%clk 0:03:45.6]}
19... Rg6+ {[%clk 0:03:18.9]} 20. Rg2 {[%clk 0:03:44.4]} 20... Qe1# {[%clk
0:03:14.1]} 0-1